bitfinex-derivatives/quotes_ETHF0:USTF0_20250427
["timestamp","ask_amount","ask_price","bid_price","bid_amount"]
[1745789639704,7.41221,1805.6,1805.5,2.84331]
[1745789641102,6.3049,1805.6,1805.4,4.3152]
[1745789641305,7.41223,1805.6,1805.5,1.10737]
[1745789642308,7.41223,1805.6,1805.4,6.00917]
[1745789642805,7.41223,1805.6,1805.5,1.10737]
[1745789642998,7.41223,1805.6,1805.4,4.9018]
[1745789643398,7.41223,1805.6,1805.4,6.00919]
[1745789645007,1.10737,1805.5,1805.4,4.9018]
[1745789645208,1.5796,1805.5,1805.4,2.80143]
[1745789645706,2.68697,1805.5,1805.4,2.80143]
[1745789645904,1.10759,1805.2,1804.8,5.97729]
[1745789646097,1.10762,1805.1,1805.0,1.10765]
[1745789646302,3.722,1805.2,1805.0,1.10765]
[1745789646501,1.1077,1805.0,1804.9,1.10774]
[1745789646701,2.4097,1805.1,1804.9,2.69444]
[1745789646908,2.4097,1805.1,1805.0,1.10767]
[1745789647208,6.1317,1805.1,1805.0,1.10767]
[1745789648511,7.23931,1805.1,1805.0,1.10767]
[1745789649303,10.44711,1805.1,1805.0,1.10767]
[1745789653108,1.10767,1805.0,1804.9,2.69438]
[1745789653315,3.52967,1805.0,1804.9,2.69438]
[1745789654213,7.25167,1805.0,1804.9,2.69438]
[1745789656135,7.25167,1805.0,1804.9,1.10768]
[1745789660213,6.144,1805.0,1804.9,1.10768]
[1745789660410,3.722,1805.0,1804.9,3.66708]
[1745789661618,4.82967,1805.0,1804.9,3.66708]
[1745789663018,3.722,1805.0,1804.9,3.66708]
[1745789667826,0.2374,1805.0,1804.9,3.66708]
[1745789695838,1.0415,1805.0,1804.9,3.66708]
[1745789696040,1.0415,1805.0,1804.6,3.2078]
[1745789696342,2.76726,1804.9,1804.7,1.10782]
[1745789696643,2.4296,1804.8,1804.7,1.10782]
[1745789696939,3.2337,1804.8,1804.7,1.10782]
[1745789697143,6.9557,1804.8,1804.6,5.95808]
[1745789697344,6.9557,1804.8,1804.7,1.10786]
[1745789699143,6.9557,1804.8,1804.6,5.95807]
[1745789699144,8.06352,1804.8,1804.6,5.95807]
[1745789699332,1.7324,1804.7,1804.6,5.95807]
[1745789700245,5.4544,1804.7,1804.6,5.95807]
[1745789700641,5.4544,1804.7,1804.6,4.8502]
[1745789700944,5.4544,1804.7,1804.6,4.31572]
[1745789701846,5.4544,1804.7,1804.6,3.2078]
[1745789702048,5.4544,1804.7,1804.6,4.31572]
[1745789703252,6.56226,1804.7,1804.6,3.2078]
[1745789703550,5.4544,1804.7,1804.6,4.31572]
[1745789703951,6.56226,1804.7,1804.6,4.31572]
[1745789705052,5.4544,1804.7,1804.6,4.31572]
[1745789705856,6.56226,1804.7,1804.6,4.31572]
[1745789706154,5.4544,1804.7,1804.6,4.31572]
[1745789713853,6.56226,1804.7,1804.6,4.31572]
[1745789715757,5.4544,1804.7,1804.6,4.31572]
[1745789716954,5.4544,1804.7,1804.6,1.10792]
[1745789717158,6.56226,1804.7,1804.6,1.10792]
[1745789718253,6.56226,1804.7,1804.5,4.9132]
[1745789718448,3.58612,1804.6,1804.5,6.02118]
[1745789719156,7.30812,1804.6,1804.5,4.9132]
[1745789719550,7.30812,1804.6,1804.5,6.02118]
[1745789720658,7.30812,1804.6,1804.5,3.2078]
[1745789721659,7.30812,1804.6,1804.5,4.31578]
[1745789722561,7.30812,1804.6,1804.5,3.2078]
[1745789722756,6.2002,1804.6,1804.5,1.10798]
[1745789724056,7.30815,1804.6,1804.5,1.10798]
[1745789724258,1.108,1804.5,1804.4,1.10802]
[1745789724563,3.6103,1804.5,1804.4,1.10802]
[1745789725252,7.3323,1804.5,1804.4,1.10802]
[1745789728063,6.2243,1804.5,1804.4,1.10802]
[1745789729063,7.33228,1804.5,1804.4,1.10802]
[1745789730255,6.2243,1804.5,1804.4,1.10802]
[1745789730462,3.722,1804.5,1804.4,4.31582]
[1745789730859,3.722,1804.5,1804.4,5.89512]
[1745789737174,2.5471,1804.8,1804.7,1.10786]
[1745789737571,2.5471,1804.8,1804.5,3.2878]
[1745789737572,2.5471,1804.8,1804.6,1.10787]
[1745789737773,1.7036,1804.7,1804.6,2.75147]
[1745789738073,5.4256,1804.7,1804.6,2.75147]
[1745789741577,3.722,1804.7,1804.6,2.75147]
[1745789742081,3.722,1804.7,1804.6,5.95927]
[1745789742783,3.722,1804.7,1804.6,10.95927]
[1745789743283,2.4996,1805.2,1805.1,1.10761]
[1745789744082,6.2216,1805.2,1805.0,2.74933]
[1745789744284,6.2216,1805.2,1805.1,1.6417]
[1745789744688,6.2216,1805.2,1805.1,2.74931]
[1745789745984,7.32915,1805.2,1805.1,2.74931]
[1745789747587,6.2216,1805.2,1805.1,2.74931]
[1745789749188,7.32915,1805.2,1805.1,2.74931]
[1745789754795,1.10761,1805.1,1805.0,0.277]
[1745789755092,6.46381,1805.1,1805.0,0.277]
[1745789755489,6.46381,1805.1,1805.0,1.38467]
[1745789756495,6.46381,1805.1,1805.0,0.277]
[1745789757793,6.46381,1805.1,1805.0,1.38467]
[1745789758097,6.46381,1805.1,1805.0,0.277]
[1745789760697,9.96581,1805.1,1805.0,0.277]
[1745789765107,9.96581,1805.1,1805.0,1.38467]
[1745789774508,9.96581,1805.1,1805.0,2.98867]
[1745789775813,8.8582,1805.1,1805.0,2.98867]
[1745789776407,7.224,1805.1,1805.0,2.98867]
[1745789779515,3.722,1805.1,1805.0,2.98867]
[1745789784319,3.722,1805.1,1805.0,7.98867]
[1745789786011,3.722,1805.1,1805.0,8.43147275]
[1745789786720,3.722,1805.1,1805.0,7.98867]
[1745789787830,3.722,1805.1,1805.0,2.98867]
[1745789788130,3.722,1805.2,1805.1,1.10761]
[1745789788329,3.722,1805.2,1805.1,5.17551]
[1745789789518,3.722,1805.2,1805.1,5.45241]
[1745789790632,3.722,1805.2,1805.1,7.17351]
[1745789802943,3.722,1805.2,1805.1,3.96571]
[1745789803142,3.722,1805.2,1805.1,7.17351]
[1745789808850,1.5822,1805.4,1805.3,1.10749]
[1745789809141,5.3042,1805.4,1805.3,1.10749]
[1745789810841,5.3042,1805.4,1805.3,2.68149]
[1745789811948,5.3042,1805.4,1805.3,2.95839]
[1745789821350,5.3042,1805.4,1805.3,6.16619]
[1745789822256,5.3042,1805.4,1805.3,7.02449]
[1745789829857,3.722,1805.4,1805.3,7.02449]
[1745789830159,0.7922,1805.5,1805.4,1.10743]
[1745789830351,0.7922,1805.5,1805.4,2.78123]
[1745789831259,4.5142,1805.5,1805.4,2.78123]
[1745789834954,3.722,1805.5,1805.4,2.78123]
[1745789835154,3.722,1805.5,1805.4,3.05813]
[1745789835859,5.372,1805.5,1805.4,3.05813]
[1745789840158,5.372,1805.5,1805.4,3.86733]
[1745789842472,3.722,1805.5,1805.4,3.86733]
[1745789844168,0.8402,1805.7,1805.6,1.10731]
[1745789844369,0.8402,1805.7,1805.6,4.31511]
[1745789844865,0.8402,1805.7,1805.6,6.02531]
[1745789845170,4.5622,1805.7,1805.6,6.02531]
[1745789845366,5.3802,1805.7,1805.6,6.02531]
[1745789846169,5.3802,1805.7,1805.6,9.52031]
[1745789849571,5.3802,1805.7,1805.6,9.79721]
[1745789849969,3.722,1805.7,1805.6,9.79721]
[1745789850175,3.3238,1806.0,1805.9,1.10712]
[1745789850865,3.3238,1806.0,1805.9,2.77872]
[1745789851065,7.0458,1806.0,1805.9,2.77872]
[1745789855079,3.3238,1806.0,1805.9,2.77872]
[1745789855273,3.75441,1806.2,1805.9,2.77872]
[1745789855479,6.21021,1806.2,1806.1,1.107]
[1745789855873,6.21021,1806.2,1806.1,2.7116]
[1745789856075,2.48821,1806.2,1806.1,2.7116]
[1745789858473,2.4558,1806.2,1806.1,2.7116]
[1745789868888,0.8114,1806.4,1806.3,1.10688]
[1745789869590,2.3836,1806.4,1806.3,1.38368]
[1745789869886,2.3836,1806.4,1806.3,3.87368]
[1745789870281,6.1056,1806.4,1806.3,3.87368]
[1745789871291,3.722,1806.4,1806.3,7.36668]
[1745789874285,1.6808,1806.7,1806.6,1.10669]
[1745789875191,5.4028,1806.7,1806.6,1.10669]
[1745789876290,5.4028,1806.7,1806.6,2.69409]
[1745789883199,5.4028,1806.7,1806.6,2.97079]
[1745789884999,5.4028,1806.7,1806.6,0.2767]
[1745789885198,5.4028,1806.7,1806.3,3.2078]
[1745789885199,13.6106,1806.7,1806.3,3.2078]
[1745789885398,1.10679,1806.5,1806.3,3.2078]
[1745789885600,3.3655,1806.4,1806.3,4.31468]
[1745789886098,3.3655,1806.4,1806.3,3.2078]
[1745789886303,7.0875,1806.4,1806.3,4.31468]
[1745789886801,7.0875,1806.4,1806.3,1.10688]
[1745789887197,7.0875,1806.4,1806.2,3.492]
[1745789887401,1.6702,1806.3,1806.2,4.5989]
[1745789887710,1.6702,1806.3,1806.2,4.59894]
[1745789897213,1.6702,1806.3,1806.2,6.28044]
[1745789897415,1.6953,1806.4,1806.3,1.10688]
[1745789897612,1.6953,1806.4,1806.3,2.75248]
[1745789898112,5.4173,1806.4,1806.3,2.75248]
[1745789899116,1.6953,1806.4,1806.3,1.6456]
[1745789899319,1.6953,1806.4,1806.2,3.492]
[1745789899519,1.6626,1806.3,1806.2,4.59894]
[1745789904122,1.6626,1806.3,1806.2,3.492]
[1745789904314,1.6626,1806.3,1806.2,4.59894]
[1745789905422,1.6626,1806.3,1806.2,6.19694]
[1745789906125,5.3846,1806.3,1806.2,6.19694]
[1745789907224,1.6626,1806.3,1806.2,6.19694]
[1745789908322,1.6626,1806.3,1806.2,2.70494]
[1745789913628,1.6953,1806.4,1806.3,1.10688]
[1745789914218,7.069,1806.4,1806.3,1.10688]
[1745789914726,7.069,1806.4,1806.2,2.70489]
[1745789915226,7.069,1806.4,1806.3,1.10688]
[1745789917130,3.347,1806.4,1806.3,1.10688]
[1745789917928,3.347,1806.4,1806.2,2.70491]
[1745789918231,1.6767,1806.3,1806.2,2.70491]
[1745789919232,5.3987,1806.3,1806.2,2.70491]
[1745789920134,3.4453,1806.3,1806.2,2.70491]
[1745789920321,3.16849106,1806.3,1806.2,7.70491]
[1745789921428,0.27680894,1806.7,1806.6,1.10669]
[1745789921623,0.27680894,1807.0,1806.6,6.7008]
[1745789921823,0.27680894,1807.0,1806.9,1.10651]
[1745789922221,6.50170894,1807.0,1806.9,2.68651]
[1745789925135,6.50170894,1807.0,1806.9,1.58]
[1745789925736,6.50170894,1807.0,1806.9,2.68651]
[1745789926134,3.99880894,1807.0,1806.9,2.68651]
[1745789927226,3.99880894,1807.0,1806.9,1.10651]
[1745789927430,6.56200894,1807.0,1806.9,1.10651]
[1745789927738,6.56200894,1807.0,1806.8,5.96354]
[1745789927939,1.6563,1806.9,1806.8,5.96354]
[1745789928138,5.3783,1806.9,1806.8,5.96354]
[1745789931137,5.65510894,1806.9,1806.8,5.96354]
[1745789932441,5.66054218,1806.9,1806.8,5.96354]
[1745789933643,4.00424218,1806.9,1806.8,5.96354]
[1745789934743,5.58634218,1806.9,1806.8,5.96354]
[1745789940147,5.58634218,1806.9,1806.8,3.2078]
[1745789940339,6.69285218,1806.9,1806.8,3.2078]
[1745789940842,1.10663,1806.7,1806.6,3.2078]
[1745789941139,4.82863,1806.7,1806.6,3.2078]
[1745789941536,6.46643,1806.7,1806.6,3.2078]
[1745789943345,5.3598,1806.7,1806.6,3.2078]
[1745789943944,7.0104,1806.7,1806.6,3.2078]
[1745789944448,8.11703,1806.7,1806.6,3.2078]
[1745789944748,7.0104,1806.7,1806.5,1.10675]
[1745789944946,1.6506,1806.6,1806.5,1.10675]
[1745789945146,5.3726,1806.6,1806.5,1.10675]
[1745789946454,5.3726,1806.6,1806.4,6.74967]
[1745789946645,1.6477,1806.5,1806.4,6.74967]
[1745789947148,5.3697,1806.5,1806.4,6.74967]
[1745789948048,3.722,1806.5,1806.4,7.61877]
[1745789950151,3.99880894,1806.5,1806.4,7.61877]
[1745789957957,3.99880894,1806.5,1806.4,11.11077]
[1745789962763,3.99880894,1806.5,1806.4,7.90297]
[1745789962965,3.99880894,1806.5,1806.4,11.11077]
[1745789963170,3.99880894,1806.5,1806.4,9.38337]
[1745789963458,5.60820894,1806.5,1806.4,9.38337]
[1745789968267,5.60820894,1806.5,1806.4,7.80657]
[1745789980272,3.99880894,1806.5,1806.4,7.80657]
[1745789982170,3.99880894,1806.5,1806.4,8.67737]
[1745789992181,1.47270894,1806.5,1806.4,8.67737]
[1745790000184,0.65327374,1806.8,1806.7,1.10663]
[1745790000487,0.65327374,1806.8,1806.7,7.80643]
[1745790000687,2.25637374,1806.8,1806.7,7.80643]
[1745790000982,0.00543324,1806.9,1806.8,1.10657]
[1745790001185,3.72743324,1806.9,1806.8,3.59227]
[1745790001675,3.72743324,1806.9,1806.8,4.40967]
[1745790003883,3.72743324,1806.9,1806.8,1.93627]
[1745790004083,3.72743324,1806.9,1806.8,1.10657]
[1745790004296,8.72743324,1806.9,1806.7,6.6988]
[1745790004482,3.57327,1806.8,1806.7,3.2078]
[1745790004880,8.57327,1806.8,1806.7,3.2078]
[1745790005083,12.29527,1806.8,1806.7,3.2078]
[1745790005681,13.11207,1806.8,1806.7,3.2078]
[1745790006579,13.11207,1806.8,1806.5,4.31453]
[1745790006782,1.6708,1806.7,1806.5,4.31453]
[1745790007188,5.3928,1806.7,1806.5,4.31453]
[1745790007492,1.5903,1806.6,1806.5,4.31453]
[1745790008189,5.3123,1806.6,1806.5,4.31453]
[1745790012394,5.31713035,1806.6,1806.5,4.31453]
[1745790025006,16.29171035,1806.6,1805.9,3.2078]
[1745790025309,1.10692,1806.3,1806.0,1.659]
[1745790025610,1.10692,1806.3,1805.9,5.11249]
[1745790025611,3.2892,1806.2,1805.9,5.11249]
[1745790025810,1.7224,1806.1,1805.9,5.11249]
[1745790026105,5.4444,1806.1,1805.9,3.2078]
[1745790026610,1.7224,1806.0,1805.9,4.31492]
[1745790026809,1.7224,1806.0,1805.9,6.84732]
[1745790027209,5.4444,1806.0,1805.9,6.84732]
[1745790027612,3.722,1806.0,1805.9,6.84732]
[1745790028112,4.841,1806.2,1806.0,1.10704]
[1745790028410,1.7224,1806.1,1806.0,2.83024]
[1745790029211,5.4444,1806.1,1806.0,2.83024]
[1745790029605,3.722,1806.1,1806.0,2.83024]
[1745790030206,1.7067,1806.3,1806.2,1.10694]
[1745790030914,1.7067,1806.3,1806.2,3.63384]
[1745790031113,5.4287,1806.3,1806.2,2.5269]
[1745790031319,5.4287,1806.3,1806.2,3.63384]
[1745790036726,3.722,1806.3,1806.2,3.63384]
[1745790047135,2.5409,1806.4,1806.3,1.10688]
[1745790047335,2.5409,1806.4,1806.3,2.83258]
[1745790048233,3.722,1806.4,1806.3,2.83258]
[1745790049329,5.4355,1806.5,1806.4,1.10682]
[1745790049532,5.4355,1806.5,1806.4,2.83252]
[1745790049834,3.722,1806.5,1806.4,2.83252]
[1745790050334,3.722,1806.5,1806.4,3.62322]
[1745790055531,5.309,1806.5,1806.4,3.62322]
[1745790058341,5.309,1806.5,1806.4,2.83252]
[1745790072048,3.722,1806.5,1806.4,2.83252]
[1745790077358,5.3683,1806.5,1806.4,2.83252]
[1745790081161,3.722,1806.5,1806.4,2.83252]
[1745790082162,5.311,1806.5,1806.4,2.83252]
[1745790088566,3.722,1806.5,1806.4,2.83252]
[1745790089064,3.72662934,1806.5,1806.4,2.83252]
[1745790090970,5.40072934,1806.5,1806.4,2.83252]
[1745790092971,5.40072934,1806.5,1806.4,6.04032]
[1745790100980,0.51882934,1806.5,1806.4,6.04032]
[1745790101674,0.8605,1806.6,1806.5,1.10675]
[1745790101875,0.8605,1806.6,1806.5,4.35005]
[1745790102175,4.5825,1806.6,1806.5,4.35005]
[1745790102378,3.722,1806.6,1806.5,4.35005]
[1745790110986,3.722,1806.6,1806.5,7.55785]
[1745790119590,3.722,1806.6,1806.5,4.35005]
[1745790119884,3.722,1806.6,1806.5,4.31455]
[1745790120090,15.55061,1806.6,1806.2,1.1069]
[1745790120294,1.6346,1806.5,1806.2,1.1069]
[1745790120485,1.6346,1806.5,1806.2,1.10694]
[1745790120789,0.8332,1806.4,1806.2,1.10694]
[1745790120992,2.4574,1806.3,1806.2,1.10694]
[1745790122291,6.1794,1806.3,1806.2,1.10694]
[1745790123290,2.4574,1806.3,1806.2,1.10694]
[1745790124088,6.1794,1806.3,1806.2,1.10694]
[1745790125095,6.1794,1806.3,1806.1,3.2078]
[1745790125283,1.6434,1806.2,1805.9,3.2078]
[1745790125483,3.2078,1806.0,1805.7,7.37630614]
[1745790125680,4.31498,1805.8,1805.7,7.37630614]
[1745790125885,1.10724,1805.7,1805.6,11.06445921]
[1745790126184,6.47264,1805.7,1805.6,7.34296535]
[1745790126386,11.47264,1805.7,1805.6,7.34296535]
[1745790128181,10.3654,1805.7,1805.6,8.45027535]
[1745790128989,11.0711,1805.7,1805.6,8.45027535]
[1745790129896,11.0711,1805.7,1805.6,1.10731]
[1745790130394,6.0711,1805.7,1805.6,1.10731]
[1745790130891,5.3654,1805.7,1805.6,1.10731]
[1745790131096,1.6434,1805.7,1805.6,1.10731]
[1745790131602,3.2078,1806.1,1806.0,1.10706]
[1745790131791,4.932,1806.1,1806.0,1.10706]
[1745790132297,4.932,1806.1,1806.0,2.78986]
[1745790132595,3.2078,1806.3,1806.0,2.78986]
[1745790132791,3.2078,1806.3,1806.2,1.10694]
[1745790132990,3.2078,1806.3,1806.2,4.60094]
[1745790133698,3.2078,1806.3,1806.2,7.09474]
[1745790135899,3.2078,1806.6,1806.5,1.10675]
[1745790136101,6.9298,1806.6,1806.5,1.10675]
[1745790136297,3.722,1806.6,1806.5,1.10675]
[1745790136696,3.722,1806.6,1806.5,4.59975]
[1745790137203,1.6628,1806.7,1806.6,1.10669]
[1745790137403,1.6628,1806.7,1806.6,2.68289]
[1745790138703,3.2078,1806.8,1806.7,1.10663]
[1745790139203,6.9298,1806.8,1806.7,1.10663]
[1745790140705,6.9298,1806.8,1806.7,1.90903]
[1745790141203,6.9298,1806.8,1806.7,3.60783]
[1745790147493,2.76659,1806.7,1805.9,1.10707]
[1745790147698,3.2078,1806.1,1805.8,1.10714]
[1745790147903,1.6919,1806.0,1805.8,1.10714]
[1745790148801,1.6919,1806.0,1805.8,2.68074]
[1745790149108,5.4139,1806.0,1805.8,2.68074]
[1745790149506,5.4139,1806.0,1805.9,1.10712]
[1745790151310,5.4139,1806.0,1805.8,2.68074]
[1745790152612,5.4139,1806.0,1805.9,1.10712]
[1745790152800,5.4139,1806.0,1805.8,2.68075]
[1745790153004,5.4139,1806.0,1805.8,1.10716]
[1745790154207,5.4139,1806.0,1805.8,1.10718]
[1745790154407,5.4139,1806.0,1805.7,3.534]
[1745790155016,5.4139,1806.0,1805.7,4.6412]
[1745790155615,5.4139,1806.0,1805.8,1.10718]
[1745790157611,5.4139,1806.0,1805.9,1.10712]
[1745790159508,3.722,1806.0,1805.9,1.10712]
[1745790159708,3.722,1806.0,1805.9,6.10712]
[1745790160111,3.2078,1806.1,1806.0,1.10706]
[1745790160308,3.2078,1806.1,1806.0,7.10986]
[1745790161619,3.2078,1806.7,1806.1,2.76743]
[1745790161812,4.7866,1806.7,1806.4,1.1068]
[1745790162007,5.89326,1806.7,1806.3,1.10685]
[1745790162215,9.61526,1806.7,1806.2,1.5968]
[1745790162415,9.61526,1806.7,1806.3,1.10685]
[1745790162718,9.61526,1806.7,1806.2,1.5968]
[1745790162912,9.61526,1806.7,1806.3,1.10683]
[1745790163318,9.61526,1806.7,1806.4,1.1068]
[1745790164419,9.61526,1806.7,1806.5,1.10675]
[1745790164714,9.61526,1806.7,1806.4,1.10679]
[1745790164911,9.61526,1806.7,1806.5,1.10674]
[1745790165109,9.61524,1806.7,1806.5,1.10674]
[1745790165307,8.5086,1806.7,1806.3,2.76719]
[1745790165716,8.5086,1806.7,1806.6,1.10669]
[1745790166222,9.61523,1806.7,1806.6,1.10669]
[1745790166720,8.5086,1806.7,1806.6,1.10669]
[1745790167521,9.61523,1806.7,1806.6,1.10669]
[1745790169930,8.5086,1806.7,1806.6,1.10669]
[1745790177129,9.61523,1806.7,1806.6,1.10669]
[1745790177540,1.1067,1806.6,1806.5,1.10671]
[1745790177830,2.8046,1806.6,1806.5,1.10671]
[1745790178222,6.5266,1806.6,1806.5,1.10671]
[1745790178822,6.52659,1806.6,1806.5,1.10671]
[1745790181925,5.4199,1806.6,1806.5,1.10671]
[1745790183825,5.4199,1806.6,1806.5,2.84241]
[1745790186338,6.52659,1806.6,1806.5,2.84241]
[1745790186533,5.4199,1806.6,1806.5,1.10671]
[1745790186837,5.4199,1806.6,1806.5,1.10675]
[1745790192034,5.4199,1806.6,1806.4,4.32598]
[1745790192232,2.82325,1806.5,1806.4,0.8027]
[1745790192431,2.82325,1806.5,1806.4,1.90952]
[1745790193032,1.7165,1806.5,1806.4,1.90952]
[1745790193340,11.54525,1806.5,1806.3,1.10683]
[1745790193537,7.25125,1806.5,1806.3,1.10683]
[1745790193726,1.7401,1806.4,1806.3,1.10683]
[1745790194240,5.4621,1806.4,1806.3,1.10683]
[1745790196835,5.4621,1806.4,1806.2,1.1069]
[1745790197035,1.5771,1806.3,1806.2,1.1069]
[1745790198141,5.2991,1806.3,1806.2,1.1069]
[1745790199739,5.2991,1806.3,1806.1,2.73485]
[1745790199941,1.6042,1806.2,1806.1,2.73485]
[1745790201141,5.3262,1806.2,1806.1,2.73485]
[1745790209246,3.722,1806.2,1806.1,2.73485]
[1745790227171,3.2078,1806.5,1806.4,1.10682]
[1745790227667,1.6676,1806.6,1806.4,1.10682]
[1745790227868,3.2078,1806.5,1806.3,1.5921]
[1745790228067,1.727,1806.4,1806.2,2.78288]
[1745790228368,1.727,1806.4,1806.2,1.676]
[1745790228570,1.727,1806.4,1806.3,2.69898]
[1745790229068,5.449,1806.4,1806.3,2.69898]
[1745790230666,6.55583,1806.4,1806.2,1.94141]
[1745790230862,1.579,1806.3,1806.2,1.94144]
[1745790231064,5.301,1806.3,1806.2,1.94144]
[1745790234375,3.722,1806.3,1806.2,1.94144]
[1745790234572,3.722,1806.3,1806.2,3.52524]
[1745790237972,0.2658,1806.3,1806.2,8.52524]
[1745790238273,3.2078,1807.0,1806.8,1.10655]
[1745790238473,4.8874,1807.0,1806.9,1.6194]
[1745790238674,4.8874,1807.0,1806.9,3.2654]
[1745790239274,8.6094,1807.0,1806.9,3.2654]
[1745790239574,8.6094,1807.0,1806.9,4.37191]
[1745790240577,8.6094,1807.0,1806.6,3.511]
[1745790240775,2.68522,1806.9,1806.7,1.10659]
[1745790241073,1.5787,1806.8,1806.7,1.10659]
[1745790241576,3.722,1806.9,1806.8,1.10657]
[1745790241974,3.2078,1807.3,1807.2,1.10633]
[1745790242172,3.2078,1807.3,1807.2,4.61633]
[1745790243471,6.9298,1807.3,1807.2,6.18783]
[1745790243780,3.722,1807.3,1807.2,9.39563]
[1745790245280,3.722,1807.3,1807.2,11.01903]
[1745790245776,3.722,1807.3,1807.2,16.01903]
[1745790246870,3.722,1807.3,1807.2,11.01903]
[1745790247767,3.722,1807.3,1807.2,11.01803]
[1745790250768,3.722,1807.3,1807.2,9.1215]
[1745790250973,3.722,1807.3,1807.2,3.2078]
[1745790251175,3.722,1807.3,1807.1,3.509]
[1745790251481,1.5875,1807.2,1807.1,3.509]
[1745790251779,1.5875,1807.2,1807.0,6.0128]
[1745790251980,5.6495,1807.2,1807.0,6.0128]
[1745790252174,9.3715,1807.2,1807.0,6.0128]
[1745790252380,4.5762,1807.2,1807.1,1.10639]
[1745790252582,6.1637,1807.2,1807.1,1.10639]
[1745790252775,5.3095,1807.2,1807.1,1.10639]
[1745790254682,3.722,1807.2,1807.1,1.10639]
[1745790260483,3.722,1807.2,1807.1,4.31419]
[1745790266590,0.62,1807.2,1807.1,4.31419]
[1745790266790,1.6622,1807.6,1807.5,1.10614]
[1745790266992,1.6622,1807.6,1807.5,4.64914]
[1745790267182,5.3842,1807.6,1807.5,4.64914]
[1745790267379,5.3842,1807.6,1807.5,7.13794]
[1745790267586,3.722,1807.6,1807.5,7.13794]
[1745790272790,5.3685,1807.6,1807.5,7.13794]
[1745790273197,5.3685,1807.6,1807.5,4.64914]
[1745790273990,5.3685,1807.6,1807.5,6.31614]
[1745790276297,5.3685,1807.6,1807.5,4.64914]
[1745790282503,5.3685,1807.6,1807.5,6.29304]
[1745790284502,5.3685,1807.6,1807.5,4.64914]
[1745790292200,5.3685,1807.6,1807.4,3.2078]
[1745790292405,2.54,1807.5,1807.2,7.85708]
[1745790292606,2.505,1807.4,1807.2,7.85708]
[1745790292808,1.6983,1807.3,1807.2,7.85708]
[1745790293103,5.4203,1807.3,1807.2,7.85708]
[1745790299507,5.4203,1807.3,1807.2,9.50998]
[1745790303112,3.722,1807.3,1807.2,9.50998]
[1745790303311,3.722,1807.3,1807.2,14.50998]
[1745790303518,2.9498,1807.3,1807.2,14.50998]
[1745790304115,1.6556,1807.8,1807.7,1.10602]
[1745790304715,1.6556,1807.8,1807.7,2.69212]
[1745790305208,5.3776,1807.8,1807.7,2.69212]
[1745790310020,5.3776,1807.8,1807.6,4.64903]
[1745790310217,2.3971,1807.7,1807.6,3.543]
[1745790310414,3.50313,1807.7,1807.4,1.10616]
[1745790310714,2.4124,1807.6,1807.3,4.64922]
[1745790310910,1.595,1807.5,1807.3,4.64922]
[1745790311109,5.317,1807.5,1807.3,4.64922]
[1745790311316,2.4412,1807.4,1807.3,3.543]
[1745790312221,6.1632,1807.4,1807.3,3.543]
[1745790312713,6.1632,1807.4,1807.3,4.64926]
[1745790312714,5.317,1807.4,1807.3,4.64926]
[1745790312906,5.317,1807.4,1807.3,6.25196]
[1745790313110,3.722,1807.4,1807.3,7.04036]
[1745790314616,3.722,1807.4,1807.3,7.82596]
[1745790315313,3.722,1807.4,1807.3,12.82596]
[1745790316416,3.722,1807.4,1807.3,7.82596]
[1745790332818,3.722,1807.4,1807.3,4.64926]
[1745790333126,8.722,1807.4,1807.2,6.7578]
[1745790333326,3.3103,1807.3,1807.2,6.7578]
[1745790333730,8.3103,1807.3,1807.2,6.7578]
[1745790333934,3.3103,1807.3,1807.2,6.7578]
[1745790334232,7.0323,1807.3,1807.2,6.7578]
[1745790336032,7.0323,1807.3,1807.2,7.86413]
[1745790336734,7.0323,1807.3,1807.2,6.7578]
[1745790337431,7.0323,1807.3,1807.2,3.2078]
[1745790338836,7.0323,1807.3,1807.0,6.7578]
[1745790338837,1.10635,1807.2,1807.0,6.7578]
[1745790339042,1.7251,1807.2,1807.0,6.7578]
[1745790339236,2.83144,1807.2,1807.0,6.7578]
[1745790339741,1.7251,1807.1,1807.0,6.7578]
[1745790340036,1.7251,1807.1,1807.0,3.2078]
[1745790340037,5.4471,1807.1,1807.0,3.2078]
[1745790340231,10.4471,1807.1,1806.9,3.55]
[1745790340430,3.3775,1807.0,1806.9,3.55]
[1745790340635,3.3775,1807.0,1806.8,1.10654]
[1745790340837,1.7023,1806.9,1806.8,4.65654]
[1745790341145,5.4243,1806.9,1806.8,4.65654]
[1745790341648,5.4243,1806.9,1806.8,3.55]
[1745790341836,5.4243,1806.9,1806.7,4.31439]
[1745790342138,1.7023,1806.8,1806.7,6.7578]
[1745790342332,1.7023,1806.8,1806.7,3.55]
[1745790342534,1.7023,1806.8,1806.6,3.551]
[1745790342739,1.6595,1806.7,1806.6,3.551]
[1745790343246,5.3815,1806.7,1806.6,3.551]
[1745790343645,5.3815,1806.7,1806.5,4.31452]
[1745790343941,1.6339,1806.6,1806.5,4.31452]
[1745790345145,5.3559,1806.6,1806.5,4.31452]
[1745790347139,5.3559,1806.6,1806.5,3.2078]
[1745790348546,5.3559,1806.6,1806.4,3.551]